[Event "Israel Team Championship 2025"]
[Site "Israel"]
[Date "2025.01.17"]
[Round "3.17"]
[White "Newman, Ori"]
[Black "Klenburg, Michael"]
[Result "1-0"]
[Annotator "TA"]
[ECO "E68"]
[WhiteElo "2276"]
[BlackElo "2332"]
[PlyCount "53"]
[EventDate "2025.01.07"]
[EventType "team-tourn"]
[EventCountry "ISR"]
[SourceTitle "playchess.com"]
[Source "ChessBase"]
[SourceQuality "1"]
[TimeControl "40/5400+30:1800+30"]

{[%evp 19,53,21,36,23,31,26,31,16,23,26,45,47,49,41,79,66,139,124,141,112,237,251,253,247,406,419,391,367,554,547,549,549,585,562,801,796]} 1. d4 {[%emt 0:00:03]} d6 {[%emt 0:00:28]} 2. Nf3 {[%emt 0:00:15]} Nf6 {[%emt 0:00:29]} 3. c4 {[%emt 0:00:13]} g6 {[%emt 0:00:22]} 4. Nc3 {[%emt 0:01:32]} Bg7 {[%emt 0:00:18]} 5. g3 {[%emt 0:00:12]} O-O {[%emt 0:00:47]} 6. Bg2 {[%emt 0:00:04]} Nbd7 {[%emt 0:00:44]} 7. O-O {[%emt 0:00:49]} e5 {[%emt 0:00:29]} 8. h3 {[%emt 0:02:26]} Re8 {[%emt 0:01:29]} 9. e4 {[%emt 0:00:33]} exd4 {[%emt 0:00:55]} 10. Nxd4 {[%emt 0:00:06]} a6 {[%emt 0:00:20]} 11. Bf4 {[%emt 0:06:25]} Rb8 {[%emt 0:02:40]} 12. b3 {[%emt 0:09:38]} Ne5 {[%emt 0:03:51]} 13. a4 {[%emt 0:06:56]} Bd7 {[%emt 0:09:15]} 14. a5 {[%emt 0:05:15]} Nc6 {[%emt 0:07:23] White must now prevent ...Nxd4.} 15. Nde2 $1 {[%emt 0:06:41]} Ne5 {[%emt 0:11:38]} 16. Be3 {[%emt 0:02:57]} Qe7 {[%emt 0:04:59]} 17. Bg5 {[%emt 0:06:01][%cal Be3g5,Bg5h4,Bh4f6][%mdl 32] Hoping for Nd5.} Qf8 {[%emt 0:00:33] [#]} (17... Bc6 $14) 18. f4 $1 $16 {[%emt 0:07:15]} Nc6 {[%emt 0:00:33]} 19. e5 $1 {[%emt 0:01:09]} Nh5 {[%emt 0:01:03]} (19... dxe5 $16 20. Bxf6 Bxf6) 20. g4 $18 {[%emt 0:04:25]} h6 {[%emt 0:01:39]} 21. Bh4 {[%emt 0:00:36]} Nxf4 $2 {[%emt 0:00:30]} (21... g5) 22. Nxf4 {[%emt 0:00:51]} Nxe5 {[%emt 0:00:07]} 23. Nfd5 {[%emt 0:03:53]} c6 {[%emt 0:09:19]} (23... Rbc8 {was called for.} 24. Ne4 Kh8) 24. Nf6+ {[%emt 0:01:03]} Bxf6 {[%emt 0:00:09]} 25. Bxf6 {[%emt 0:00:11]} Re6 {[%emt 0:00:20]} 26. Ne4 {[%emt 0:00:48]} Bc8 {[%emt 0:01:47]} 27. Ra2 {[%emt 0:01:21]} 1-0

[Event "Israel Team Championship 2025"]
[Site "Israel"]
[Date "2025.01.17"]
[Round "3.18"]
[White "Iliaguev, Kafar"]
[Black "Zhemailov, Adam"]
[Result "1-0"]
[Annotator "TA"]
[ECO "D45"]
[WhiteElo "2259"]
[BlackElo "2116"]
[PlyCount "119"]
[EventDate "2025.01.07"]
[EventType "team-tourn"]
[EventCountry "ISR"]
[SourceTitle "playchess.com"]
[Source "ChessBase"]
[SourceQuality "1"]
[TimeControl "40/5400+30:1800+30"]

{[%evp 24,119,0,0,7,0,0,-4,0,-21,-21,-36,-6,-2,-16,-20,-18,-44,-45,-41,-41,-46,-44,-40,-43,-56,-59,-54,-49,-48,-31,-40,-33,-58,-48,-53,-37,-42,-41,-38,-34,-41,-36,-42,-32,-44,0,0,0,-12,-8,-7,0,0,0,0,0,0,20,0,67,0,202,0,0,0,0,0,0,0,0,0,95,119,176,154,373,355,352,317,917,949,843,843,1521,1916,1935,1580,4862,2278,29972,29961,5073,2123,7183,6887,4726,2917]} 1. Nf3 {[%emt 0:00:02]} Nf6 {[%emt 0:00:12]} 2. b3 {[%emt 0:00:05]} d5 {[%emt 0:02:29]} 3. Bb2 {[%emt 0:00:15]} e6 {[%emt 0:03:48]} 4. e3 {[%emt 0:00:24]} Bd6 {[%emt 0:02:22]} 5. c4 {[%emt 0:00:15]} Nbd7 {[%emt 0:01:39]} 6. Nc3 {[%emt 0:04:15]} c6 {[%emt 0:01:32]} 7. Be2 {[%emt 0:00:17]} Qe7 {[%emt 0:01:58]} 8. O-O {[%emt 0:00:37]} O-O {[%emt 0:01:11]} 9. d4 {[%emt 0:00:41]} b6 {[%emt 0:03:46]} 10. Qc2 {[%emt 0:00:46]} Bb7 {[%emt 0:05:09]} 11. e4 {[%emt 0:01:26]} dxe4 {[%emt 0:04:51]} 12. Nxe4 {[%emt 0:02:09]} Nxe4 {[%emt 0:02:04]} 13. Qxe4 {[%emt 0:00:06]} Nf6 {[%emt 0:01:11]} 14. Qh4 {[%emt 0:01:02]} c5 {[%emt 0:06:05]} 15. Bd3 {[%emt 0:05:10]} h6 {[%emt 0:09:06]} 16. Rfe1 {[%emt 0:03:21][%cal Od4d5]} Bxf3 {[%emt 0:11:39]} 17. gxf3 {[%emt 0:00:13][%cal Od4d5] [#]} Nd5 $1 {[%emt 0:00:48]} 18. Qxe7 {[%emt 0:06:45]} Nxe7 {[%emt 0:00:07]} 19. Rad1 {[%emt 0:01:26]} Rad8 {[%emt 0:02:24]} 20. Be4 {[%emt 0:22:16]} cxd4 {[%emt 0:07:04]} 21. Rxd4 {[%emt 0:03:54]} Bc5 {[%emt 0:00:39]} 22. Rdd1 {[%emt 0:02:55]} Bb4 {[%emt 0:02:57]} 23. Rf1 {[%emt 0:00:52]} f5 {[%emt 0:01:08]} 24. Bd3 {[%emt 0:07:07]} Ng6 {[%emt 0:02:33]} 25. a3 {[%emt 0:00:22]} Bd6 {[%emt 0:01:30]} 26. Rfe1 {[%emt 0:01:57][%cal Oc4c5]} Nf4 {[%emt 0:01:43] aiming for ...Nxd3.} 27. Bf1 {[%emt 0:03:24]} Kf7 {[%emt 0:05:44]} 28. b4 {[%emt 0:11:28]} g5 {[%emt 0:04:54]} 29. Rd2 {[%emt 0:00:25]} Bc7 {[%emt 0:02:05]} 30. Red1 {[%emt 0:00:10]} Rxd2 {[%emt 0:01:04]} 31. Rxd2 {[%emt 0:00:01]} Ke7 {[%emt 0:02:30] Inhibits Rd7+.} 32. c5 {[%emt 0:05:17]} bxc5 {[%emt 0:00:49]} 33. bxc5 {[%emt 0:00:14]} Rb8 {[%emt 0:01:18]} 34. a4 {[%emt 0:02:25]} Rb4 {[%emt 0:03:59]} 35. c6 {[%emt 0:05:47]} Ke8 {[%emt 0:00:57][%cal Of4d5]} (35... Rxa4 $2 36. Rd7+ Ke8 37. Rxc7 $18) (35... Nd5 36. Ba3 Bd6 37. Bxb4 Bxb4 38. Rc2 $18) 36. a5 {[%emt 0:04:13]} Nd5 {[%emt 0:01:52]} (36... Bxa5 37. Bc3 Rb1 38. Bxa5 $16) 37. a6 {[%emt 0:01:03]} g4 {[%emt 0:02:14]} 38. fxg4 {[%emt 0:01:33]} Rxg4+ {[%emt 0:00:09]} 39. Kh1 {[%emt 0:00:31]} Rb4 {[%emt 0:00:53]} 40. Be2 {[%emt 0:02:56]} Rh4 {[%emt 0:01:21] Wards off Bh5+} 41. Bf3 {[%emt 0:13:28]} Nb6 {[%emt 0:13:54]} ({Black should play} 41... Rc4 $11) 42. Bf6 {[%emt 0:02:42]} (42. Bd4 $14) 42... Rxh2+ $11 {[%emt 0:03:12]} 43. Kg1 {[%emt 0:00:04][%cal Of6d8]} Rh3 {[%emt 0:01:27]} 44. Kg2 {[%emt 0:00:19]} Rh2+ {[%emt 0:00:17]} 45. Kg1 {[%emt 0:04:08][%cal Of6d8]} Rh3 {[%emt 0:01:59]} 46. Kg2 {[%emt 0:06:37]} Rh2+ {[%emt 0:00:20]} 47. Kf1 {[%emt 0:00:44]} (47. Kg1 $5 Rh3 $8 $11) 47... e5 {[%emt 0:05:07]} (47... Rh3 $1 $11 48. Kg2) 48. Bg2 $16 {[%emt 0:03:25] White is more active.} e4 {[%emt 0:01:30]} (48... Rh5 $16 {was worth a try.} 49. Re2 (49. Bf3 Rg5 $18) 49... e4) 49. Bd4 {[%emt 0:00:19]} Rh4 $2 {[%emt 0:03:22]} (49... Rh5 $16 50. Rb2 f4) 50. Rb2 $18 {[%emt 0:00:20] aiming for Bxb6.} e3 {[%emt 0:01:43]} 51. fxe3 {[%emt 0:00:09]} ({Not} 51. Bxe3 Ra4 $16) 51... Nc8 $2 {[%emt 0:01:07]} (51... Ke7 52. Rb4 Ke6) 52. Rb7 {[%emt 0:01:16][%csl LRa7,LRc7]} Bd6 {[%emt 0:01:21]} 53. Bd5 {[%emt 0:01:06]} f4 {[%emt 0:00:44]} 54. Bf7+ {[%emt 0:00:42] This pair of bishops is nice.} Kf8 {[%emt 0:00:10]} 55. Be6 {[%emt 0:00:37]} Ne7 {[%emt 0:00:54]} 56. Rxa7 {[%emt 0:00:19] White wants to mate with Ra8+.} fxe3 {[%emt 0:00:37]} 57. Ra8+ {[%emt 0:01:28]} Nc8 {[%emt 0:00:10]} 58. Bxe3 {[%emt 0:00:39]} (58. Rxc8+ $142 Ke7 59. a7 (59. Bxe3 Kxe6 60. a7 Ra4 $18) 59... Rxd4 60. a8=Q (60. a8=B Kxe6 61. Re8+ Kf6 $11) 60... Kxe6 61. Re8+ Kf5 62. Rxe3 (62. Qc8+ Kg5 $18)) 58... Ra4 {[%emt 0:00:46]} 59. a7 {[%emt 0:00:26]} Ke7 {[%emt 0:00:26]} 60. Bxc8 {[%emt 0:00:15]} 1-0

[Event "Israel Team Championship 2025"]
[Site "Israel"]
[Date "2025.01.17"]
[Round "3.19"]
[White "Zoler, Dan"]
[Black "Shohat, Yotam"]
[Result "1-0"]
[Annotator "TA"]
[ECO "D26"]
[WhiteElo "2472"]
[BlackElo "2404"]
[PlyCount "99"]
[EventDate "2025.01.07"]
[EventType "team-tourn"]
[EventCountry "ISR"]
[SourceTitle "playchess.com"]
[Source "ChessBase"]
[SourceQuality "1"]
[TimeControl "40/5400+30:1800+30"]

{[%evp 15,99,24,26,16,22,16,38,23,48,0,0,0,0,-8,-14,-19,-3,-14,46,48,36,24,51,56,68,42,54,44,39,6,27,27,29,25,30,21,153,151,226,245,341,322,345,340,339,353,311,268,340,291,293,207,232,224,245,199,236,236,308,276,300,243,262,281,272,228,251,253,285,281,273,280,408,439,496,477,1135,1083,1156,1122,1608,1491,29968,29968,29985,29986]} 1. d4 {[%emt 0:07:12]} d5 {[%emt 0:00:06]} 2. c4 {[%emt 0:00:13]} dxc4 {[%emt 0:00:03]} 3. Nf3 {[%emt 0:06:19]} Nf6 {[%emt 0:00:36]} 4. e3 {[%emt 0:00:11]} e6 {[%emt 0:00:11]} 5. Bxc4 {[%emt 0:00:11]} a6 {[%emt 0:00:05]} 6. O-O {[%emt 0:00:51]} b5 {[%emt 0:00:06]} 7. Bd3 {[%emt 0:02:45]} Bb7 {[%emt 0:00:05]} 8. a4 {[%emt 0:02:43]} b4 {[%emt 0:00:23]} 9. Nbd2 {[%emt 0:02:02]} c5 {[%emt 0:02:07]} 10. e4 {[%emt 0:02:00][%cal Be3e4,Be4e5][%mdl 32]} cxd4 {[%emt 0:00:06]} 11. e5 {[%emt 0:02:25]} Nfd7 {[%emt 0:00:14]} 12. Ne4 {[%emt 0:02:26]} (12. Nxd4 Nc5 13. N2f3 Qd5 $11) (12. Nc4 $1 $14 {was preferable.}) 12... Nc5 $11 {[%emt 0:11:47]} 13. Nxc5 {[%emt 0:01:32]} Bxc5 {[%emt 0:01:34]} 14. Bf4 {[%emt 0:01:19]} Nd7 {[%emt 0:07:15]} 15. Re1 {[%emt 0:14:52]} Be7 {[%emt 0:11:40]} 16. Be4 {[%emt 0:02:31]} Nc5 {[%emt 0:07:02]} (16... Qb8 $11) 17. Bxb7 $14 {[%emt 0:02:19]} Nxb7 {[%emt 0:00:12]} 18. Nxd4 {[%emt 0:04:27][%cal Od1f3]} Bc5 {[%emt 0:31:25]} 19. Nb3 {[%emt 0:04:09]} O-O {[%emt 0:02:20]} 20. Rc1 {[%emt 0:05:51]} Rc8 {[%emt 0:05:24]} 21. Qf3 {[%emt 0:07:16]} Qd7 {[%emt 0:03:27]} 22. Rc2 {[%emt 0:08:59]} Bb6 {[%emt 0:12:52]} ({Much worse is} 22... Qxa4 $6 23. Rec1 $18) 23. Rd1 $36 {[%emt 0:09:41][%mdl 2048] Black is under pressure.} Qe7 {[%emt 0:01:38]} 24. Rc6 {[%emt 0:00:07]} Rxc6 {[%emt 0:00:38]} 25. Qxc6 {[%emt 0:00:03]} Qc7 {[%emt 0:01:02] [#]} (25... Rd8 $1 $11 26. Rxd8+ Qxd8) 26. Rc1 $1 $16 {[%emt 0:00:12][%cal Bd1c1,Bc1c6,Bc6a6][%mdl 32] White has more active pieces.} Qxc6 {[%emt 0:00:37]} (26... Rd8 $16 27. Kf1 (27. Qxc7 Bxc7 28. g3 Rd7 $16) 27... Rd7) 27. Rxc6 $18 {[%emt 0:00:04]} Rd8 {[%emt 0:00:31][%cal Rd8d1]} 28. Kf1 {[%emt 0:00:30]} (28. Rxb6 $2 Rd1#) 28... Na5 {[%emt 0:00:30]} 29. Nxa5 {[%emt 0:01:34]} Bxa5 {[%emt 0:00:02]} 30. Rxa6 {[%emt 0:10:46][%mdl 4096] Endgame KRB-KRB. White is a pawn up.} Bc7 {[%emt 0:00:05]} 31. Rc6 {[%emt 0:00:00]} Rd7 {[%emt 0:00:20]} 32. Rc4 {[%emt 0:00:00]} b3 {[%emt 0:00:28]} 33. Rb4 {[%emt 0:00:00][%cal Ob4b7] Hoping for Rb7!.} Kf8 {[%emt 0:00:22]} 34. Ke2 {[%emt 0:00:00] Prevents Rd1.} (34. Rxb3 $6 Rd4) 34... Ke8 {[%emt 0:00:33]} 35. Bg3 {[%emt 0:00:00]} ({But not} 35. Rxb3 $6 Rd4) 35... Rd5 {[%emt 0:01:33]} 36. Rxb3 {[%emt 0:00:00]} Bxe5 {[%emt 0:00:05]} 37. Bxe5 {[%emt 0:00:25]} Rxe5+ {[%emt 0:00:02] KR-KR. White is a pawn up.} 38. Re3 {[%emt 0:00:12]} Rh5 {[%emt 0:00:24]} 39. h3 {[%emt 0:00:42]} Kd7 {[%emt 0:00:07]} 40. Rc3 {[%emt 0:00:54] Prevents Rc5} Rh4 {[%emt 0:00:27]} 41. b3 {[%emt 0:30:56][%cal Bb2b3,Bb3b4,Bb4b5][%mdl 32]} Rb4 {[%emt 0:30:13]} 42. Kd2 {[%emt 0:00:06]} e5 {[%emt 0:00:14]} 43. Rd3+ {[%emt 0:00:12]} Kc6 {[%emt 0:00:09]} (43... Kc8 $142 44. Kc3 Rb6) 44. Kc3 {[%emt 0:00:08]} Rb8 {[%emt 0:01:12]} 45. b4 {[%emt 0:00:11]} Ra8 {[%emt 0:00:17]} (45... f5 $142 46. b5+ Kc5) 46. b5+ {[%emt 0:00:20]} Kc5 {[%emt 0:00:06]} 47. Kb3 {[%emt 0:00:03]} Re8 {[%emt 0:01:05]} 48. Rc3+ {[%emt 0:00:41]} Kb6 {[%emt 0:00:06]} 49. Kb4 {[%emt 0:00:04]} f5 {[%emt 0:00:14]} 50. a5+ {[%emt 0:00:04]} 1-0

[Event "Israel Team Championship 2025"]
[Site "Israel"]
[Date "2025.01.17"]
[Round "3.20"]
[White "Levin, Guy"]
[Black "Zifroni, Dov"]
[Result "1-0"]
[Annotator "TA"]
[ECO "D02"]
[WhiteElo "2442"]
[BlackElo "2458"]
[PlyCount "125"]
[EventDate "2025.01.07"]
[EventType "team-tourn"]
[EventCountry "ISR"]
[SourceTitle "playchess.com"]
[Source "ChessBase"]
[SourceQuality "1"]
[TimeControl "40/5400+30:1800+30"]

{[%evp 10,125,0,4,0,-5,-14,-17,20,24,31,31,21,22,17,25,31,18,29,24,21,30,45,9,37,32,46,45,36,11,31,3,20,7,12,16,20,11,16,8,13,10,19,13,15,11,14,16,23,9,35,30,24,18,31,10,14,10,13,4,6,2,62,73,61,47,158,163,152,94,102,95,95,99,108,100,101,53,53,61,207,204,191,237,178,102,102,87,97,87,80,90,79,87,66,0,8,22,25,0,48,8,8,12,29971,29972,29972,29973,29971,29974,29979,29980,29980,29981,29981,29982,29982,29983]} 1. d4 {[%emt 0:02:58]} d5 {[%emt 0:02:29]} 2. Nf3 {[%emt 0:00:08]} Nf6 {[%emt 0:01:14]} 3. Bf4 {[%emt 0:00:08]} c5 {[%emt 0:00:17]} 4. e3 {[%emt 0:00:17]} Nc6 {[%emt 0:00:06]} 5. c3 {[%emt 0:03:04]} Qb6 {[%emt 0:02:43]} 6. Qc2 {[%emt 0:00:06]} g6 {[%emt 0:05:43]} 7. Nbd2 {[%emt 0:00:26]} Bg7 {[%emt 0:04:01]} 8. a4 {[%emt 0:13:28][%cal Oa4a5]} O-O {[%emt 0:10:19] [#]} 9. a5 $1 {[%emt 0:05:43]} Nxa5 {[%emt 0:00:41]} 10. dxc5 {[%emt 0:00:36]} Qd8 $1 {[%emt 0:00:02] Black is weak on the dark squares} (10... Qxc5 $2 11. b4 Qc6 12. Rxa5 $18 (12. bxa5 Nh5 $18)) 11. Be2 {[%emt 0:12:03]} Bf5 {[%emt 0:12:20]} 12. Qa4 {[%emt 0:02:35]} Nc6 {[%emt 0:00:18]} 13. Nd4 {[%emt 0:08:16]} Bd7 {[%emt 0:00:39]} 14. Qb3 {[%emt 0:02:40]} Qc8 {[%emt 0:13:58]} 15. O-O {[%emt 0:01:34]} Bg4 {[%emt 0:08:40]} 16. Bb5 {[%emt 0:12:16]} Nd8 {[%emt 0:06:44][%cal Oa7a6]} (16... Nh5 {keeps more tension.} 17. h3 Bxh3 18. gxh3 Nxf4 19. exf4 Qxh3 20. Qxd5 Bxd4 21. cxd4 Nxd4 22. Bc4 Qg4+) 17. h3 {[%emt 0:07:25]} Bd7 {[%emt 0:00:31]} 18. Be5 {[%emt 0:03:56]} Bxb5 {[%emt 0:06:15]} 19. Nxb5 {[%emt 0:02:24]} Qxc5 {[%emt 0:01:01]} 20. Bd4 {[%emt 0:03:05]} (20. Nxa7 $5 Nc6 (20... Rxa7 $2 21. Bd4 $18) 21. Nxc6 Qxc6 22. Qb4 $11) 20... Qc6 {[%emt 0:00:22]} 21. Rxa7 {[%emt 0:04:24]} Rxa7 {[%emt 0:00:09]} 22. Nxa7 {[%emt 0:00:18]} Qd7 {[%emt 0:01:36]} 23. Rd1 {[%emt 0:03:14]} Nc6 {[%emt 0:01:54]} 24. Nxc6 {[%emt 0:00:34]} Qxc6 {[%emt 0:03:30]} 25. Ra1 {[%emt 0:02:09]} Nd7 {[%emt 0:01:25]} 26. Ra7 {[%emt 0:01:28]} Rb8 {[%emt 0:03:00] Strongly threatening ...e5.} 27. Bxg7 {[%emt 0:00:05]} Kxg7 {[%emt 0:00:06]} 28. Qb4 {[%emt 0:01:17]} Qb6 {[%emt 0:02:08]} 29. Qd4+ {[%emt 0:00:16]} Kg8 {[%emt 0:00:40]} 30. Qxb6 {[%emt 0:02:46]} Nxb6 $14 {[%emt 0:00:02][%mdl 4096] Endgame KRN-KRN} 31. Ra5 {[%emt 0:00:07]} e6 {[%emt 0:05:03]} 32. Rb5 {[%emt 0:00:16]} Nc8 {[%emt 0:00:11]} 33. f3 {[%emt 0:00:54]} Nd6 {[%emt 0:00:51]} 34. Rb4 {[%emt 0:01:31]} b5 {[%emt 0:01:31]} 35. e4 {[%emt 0:00:47]} Nc4 {[%emt 0:00:32]} (35... dxe4 $11 36. Nxe4 Nc4) 36. Nxc4 {[%emt 0:01:03]} dxc4 {[%emt 0:00:12] KR-KR} 37. b3 {[%emt 0:00:44]} (37. Kf2 {simplifies} Kf8 38. b3 Rd8 39. bxc4 bxc4 40. g4) 37... cxb3 {[%emt 0:00:43]} (37... Rd8 $14) 38. c4 $1 $16 {[%emt 0:00:00]} Kf8 {[%emt 0:01:51]} 39. e5 {[%emt 0:01:03]} (39. Rxb5 $2 Rxb5 40. cxb5 b2 $19) (39. cxb5 $142 Ke7 40. e5 (40. Rxb3 Kd6 $14)) 39... Ke7 {[%emt 0:00:27]} 40. cxb5 {[%emt 0:00:29]} (40. Rxb5 $2 Rxb5 41. cxb5 b2 $19) 40... Kd7 {[%emt 0:00:35]} 41. Rxb3 {[%emt 0:15:58]} Kc7 {[%emt 0:00:07]} 42. Kf2 {[%emt 0:05:35]} Kb6 {[%emt 0:00:11]} 43. Ke3 {[%emt 0:02:27]} (43. Kg3 $16) 43... Rd8 $14 {[%emt 0:00:47]} 44. Rc3 {[%emt 0:04:24]} Rd7 {[%emt 0:06:53]} (44... Rf8 $14) 45. Rc8 $1 $18 {[%emt 0:01:06]} Kxb5 {[%emt 0:00:59]} 46. Rh8 $1 {[%emt 0:00:35]} h5 {[%emt 0:02:17] [#]} 47. Kf4 {[%emt 0:02:19]} (47. h4 $1 $18) 47... Rd2 $16 {[%emt 0:12:29]} 48. g4 {[%emt 0:00:53]} Rd4+ {[%emt 0:00:27]} 49. Kg5 {[%emt 0:03:10]} Rd3 {[%emt 0:00:05]} 50. gxh5 {[%emt 0:00:34]} gxh5 {[%emt 0:00:22]} 51. Kf4 {[%emt 0:01:01][%cal Oh8f8]} (51. Kxh5 Rxf3 52. Kg4 Rf1 $11) 51... Rd4+ {[%emt 0:00:24]} 52. Kg5 {[%emt 0:00:23]} (52. Kg3 $1 $14) 52... Rd3 $11 {[%emt 0:00:05]} 53. f4 {[%emt 0:00:53] and Kf6 should not be overlooked} (53. Kxh5 Rxf3 54. Kg4 Rf2) 53... Rxh3 {[%emt 0:02:17]} 54. Kf6 {[%emt 0:00:14]} Kc6 {[%emt 0:02:46]} (54... Kc4 $11 {should be considered.}) 55. Kxf7 {[%emt 0:00:48]} Kd5 {[%emt 0:00:05]} 56. f5 {[%emt 0:00:32]} exf5 $2 {[%emt 0:03:00][%mdl 8192]} (56... Kxe5 $11 57. fxe6 Rf3+ 58. Ke7 Rh3) 57. e6 {[%emt 0:00:02]} Re3 {[%emt 0:00:13]} 58. e7 {[%emt 0:00:15]} (58. Rxh5 Rxe6 59. Rxf5+ Kd6 $11) 58... f4 {[%emt 0:08:50] [#]} 59. Rd8+ $1 {[%emt 0:00:05]} (59. e8=B f3 $11) 59... Kc4 {[%emt 0:01:32]} 60. e8=Q {[%emt 0:00:03]} Rxe8 {[%emt 0:00:03]} 61. Kxe8 {[%emt 0:00:06]} ({And not} 61. Rxe8 Kd3 $11) 61... h4 {[%emt 0:00:09][%cal Bh5h4,Bh4h3][%mdl 32]} 62. Ke7 {[%emt 0:01:03]} h3 {[%emt 0:00:16]} 63. Rf8 {[%emt 0:00:07]} 1-0

[Event "Israel Team Championship 2025"]
[Site "Israel"]
[Date "2025.01.17"]
[Round "3.21"]
[White "Manor, Ilan"]
[Black "Gorodetzky, David"]
[Result "1/2-1/2"]
[Annotator "TA"]
[ECO "A13"]
[WhiteElo "2470"]
[BlackElo "2485"]
[PlyCount "130"]
[EventDate "2025.01.07"]
[EventType "team-tourn"]
[EventCountry "ISR"]
[SourceTitle "playchess.com"]
[Source "ChessBase"]
[SourceQuality "1"]
[TimeControl "40/5400+30:1800+30"]

{[%evp 35,130,-111,-87,-169,-201,-177,-41,-55,-50,-37,-16,-6,0,-10,-2,-143,-147,-158,-167,-152,-148,-156,-166,-146,-106,-106,-94,-92,-95,-96,-72,-69,-82,-82,-73,-129,-125,-130,-122,-250,-186,-293,-197,-196,-187,-172,-172,-163,-179,-190,-194,-196,-156,-133,-108,-165,-109,-114,-107,-143,-120,-335,-254,-324,-234,-335,-168,-179,-190,-215,-229,-229,-230,-230,-239,-239,-231,-229,-86,-215,-86,-86,-86,-93,-8,-16,0,0,0,0,0,0,0,0,0,0,0]} 1. Nf3 {[%emt 0:05:58]} d5 {[%emt 0:03:21]} 2. c4 {[%emt 0:00:07]} e6 {[%emt 0:00:32]} 3. g3 {[%emt 0:00:34]} Nf6 {[%emt 0:01:26]} 4. Bg2 {[%emt 0:00:06]} dxc4 {[%emt 0:02:24]} 5. Qa4+ {[%emt 0:05:37]} Nbd7 {[%emt 0:00:15]} 6. Qxc4 {[%emt 0:02:53]} a6 {[%emt 0:00:09]} 7. Qc2 {[%emt 0:00:48]} c5 {[%emt 0:03:00]} 8. O-O {[%emt 0:00:29]} b6 {[%emt 0:08:13]} 9. b4 {[%emt 0:17:02]} Bb7 {[%emt 0:05:43]} 10. bxc5 {[%emt 0:00:42]} Rc8 {[%emt 0:01:04]} 11. Nc3 {[%emt 0:11:59]} Bxc5 {[%emt 0:01:52]} 12. Qb3 {[%emt 0:14:49]} b5 {[%emt 0:08:24]} 13. Rb1 {[%emt 0:16:59]} b4 {[%emt 0:23:55]} 14. Nd1 {[%emt 0:01:55]} Bd5 {[%emt 0:06:44]} 15. Qa4 {[%emt 0:01:23]} O-O {[%emt 0:03:55]} 16. d3 {[%emt 0:04:14]} a5 {[%emt 0:04:36]} 17. Ne1 {[%emt 0:03:35]} Ba7 {[%emt 0:09:41]} 18. Bxd5 {[%emt 0:03:29]} Nxd5 {[%emt 0:02:44]} 19. a3 {[%emt 0:00:49]} (19. Nf3 $17) 19... Nc5 $19 {[%emt 0:04:48]} 20. Qb5 {[%emt 0:00:01]} b3 {[%emt 0:01:03]} (20... Nb3 $19 21. Rxb3 Rxc1) 21. e4 $15 {[%emt 0:02:48]} Nf6 {[%emt 0:05:26]} 22. Be3 {[%emt 0:00:05]} Ng4 {[%emt 0:01:12]} 23. Bxc5 {[%emt 0:03:11]} Rxc5 {[%emt 0:00:50]} 24. Qxb3 {[%emt 0:01:43]} Qd6 {[%emt 0:00:31]} 25. Nf3 {[%emt 0:00:56]} (25. Kg2 $11) 25... Rb8 $17 {[%emt 0:00:16]} 26. Qa2 {[%emt 0:00:32]} Qxd3 {[%emt 0:00:13]} 27. Rxb8+ {[%emt 0:00:25]} Bxb8 {[%emt 0:00:00]} 28. Qd2 {[%emt 0:00:33]} Qxd2 $1 {[%emt 0:01:08]} (28... Qxf3 29. Qd8#) 29. Nxd2 {[%emt 0:00:02]} Rc2 {[%emt 0:00:59]} 30. Nb3 {[%emt 0:00:17]} a4 {[%emt 0:00:27]} 31. Nd4 {[%emt 0:00:04]} Rc4 {[%emt 0:00:34]} 32. Nb5 {[%emt 0:00:10]} h5 {[%emt 0:00:31]} (32... Rxe4 33. Ndc3 Rc4 34. Rd1 $16) 33. f3 {[%emt 0:01:30]} Ne5 {[%emt 0:00:23]} 34. Kg2 {[%emt 0:00:45]} Nd3 {[%emt 0:00:37]} 35. Ne3 {[%emt 0:00:55]} ({White should play} 35. Ndc3 Be5 36. Rd1 Bxc3 (36... Rxc3 $2 37. Nxc3 Bxc3 38. Rxd3 $18) 37. Rxd3) 35... Rc5 $17 {[%emt 0:00:02]} 36. Rb1 {[%emt 0:00:09]} Be5 {[%emt 0:00:15]} 37. Rd1 {[%emt 0:00:29]} (37. h4 $17) 37... Nb2 {[%emt 0:01:15]} 38. Rd8+ {[%emt 0:00:22]} Kh7 {[%emt 0:00:01]} 39. Nd6 {[%emt 0:00:12]} Bxd6 $1 {[%emt 0:00:52]} 40. Rxd6 {[%emt 0:00:05]} Rc3 {[%emt 0:00:05]} 41. Nd1 {[%emt 0:04:39]} Nxd1 {[%emt 0:04:34]} (41... Rxa3 42. Nxb2 Ra2 43. Rd2 $16) 42. Rxd1 {[%emt 0:00:04]} Rxa3 {[%emt 0:00:10]} 43. Rd7 {[%emt 0:00:34]} Ra2+ {[%emt 0:01:21]} 44. Kh3 {[%emt 0:00:35]} Kg6 {[%emt 0:10:01]} 45. Ra7 {[%emt 0:00:29]} a3 {[%emt 0:07:51]} (45... Kf6 $19 46. e5+ Kxe5 47. Rxf7 a3 48. Rxg7 Rf2) 46. Ra5 {[%emt 0:03:31]} Ra1 {[%emt 0:03:45]} 47. Kh4 {[%emt 0:10:06]} f6 {[%emt 0:02:17]} 48. Ra6 $2 {[%emt 0:04:40]} (48. f4 $17 {might work better.}) 48... a2 {[%emt 0:01:21]} 49. f4 {[%emt 0:02:57]} Kh6 {[%emt 0:01:07]} 50. Kh3 {[%emt 0:01:10]} g6 {[%emt 0:02:46]} (50... g5 $142 51. Ra7 Kg6) 51. f5 $19 {[%emt 0:02:13]} e5 {[%emt 0:00:23]} (51... gxf5 52. exf5 e5 (52... exf5 53. Rxf6+ Kg5 54. Ra6 $15) 53. Kh4 $17) 52. fxg6 {[%emt 0:01:16]} Kxg6 {[%emt 0:00:15]} 53. Kh4 {[%emt 0:01:19] [#]} Re1 $1 {[%emt 0:00:57]} 54. Rxa2 {[%emt 0:00:05]} Rxe4+ {[%emt 0:00:01]} 55. Kh3 {[%emt 0:00:06]} Rc4 {[%emt 0:00:57]} 56. Ra8 {[%emt 0:00:49]} Rc7 {[%emt 0:00:43]} (56... Rc2 $19 57. Rg8+ Kh7) 57. Re8 {[%emt 0:01:06]} (57. Kh4 $17) 57... Rh7 {[%emt 0:00:20]} (57... Rc2 $19 {and Black stays clearly on top. ...Rd2 is the strong threat.} 58. Rg8+ Kh7) 58. Kh4 $17 {[%emt 0:02:02]} Kf5 {[%emt 0:00:01]} 59. Ra8 {[%emt 0:01:17] [#]} Re7 {[%emt 0:00:26]} ({Better is} 59... Rg7 $1 $17) 60. Rh8 $1 $11 {[%emt 0:01:03]} e4 {[%emt 0:00:40]} 61. Rxh5+ {[%emt 0:01:00]} Kg6 {[%emt 0:00:32]} 62. Ra5 {[%emt 0:00:39]} e3 {[%emt 0:01:00]} 63. Ra1 $1 {[%emt 0:00:33]} Kf5 {[%emt 0:00:31]} 64. Kh3 $1 {[%emt 0:00:25]} Rd7 {[%emt 0:00:33]} (64... e2 $5 65. Re1 $8 Re3 $11) 65. Kg2 {[%emt 0:00:38]} Rd2+ {[%emt 0:00:27]} 1/2-1/2